bitfinex/quotes_SOLUSD_20251212
["timestamp","ask_amount","ask_price","bid_price","bid_amount"]
[1765551995953,23.0485214,137.82,137.75,7.83252825]
[1765551996156,15.21599315,137.82,137.76,7.83252825]
[1765551996334,23.0485214,137.82,137.76,7.25900116]
[1765551996538,0.7,137.81,137.76,7.25900116]
[1765551997250,8.53252825,137.81,137.76,7.25900116]
[1765551997460,15.78904321,137.81,137.76,7.97900116]
[1765551997660,15.21598406,137.82,137.76,7.25900116]
[1765551997842,0.7,137.81,137.76,7.97900116]
[1765551998163,8.53252825,137.81,137.76,7.97900116]
[1765551998972,8.53252825,137.8,137.76,7.25900116]
[1765551999466,8.53252825,137.8,137.76,0.72]
[1765551999634,23.74849733,137.82,137.75,33.2408767]
[1765551999833,23.74849733,137.82,137.75,33.9608767]
[1765552000044,7.83252825,137.81,137.75,26.12834845]
[1765552000648,15.91596908,137.82,137.72,0.72]
[1765552000649,7.83252825,137.78,137.72,0.72]
[1765552000841,7.83252825,137.78,137.74,7.26004544]
[1765552001345,8.53252825,137.79,137.75,0.72]
[1765552001546,8.53252825,137.79,137.75,7.9792719]
[1765552001745,8.53252825,137.79,137.75,7.2592719]
[1765552002359,0.7,137.79,137.75,7.2592719]
[1765552003074,15.79022165,137.79,137.74,7.26001146]
[1765552003242,7.9576934,137.79,137.75,7.25950643]
[1765552003447,0.7,137.78,137.73,7.26058229]
[1765552003642,15.09022165,137.79,137.73,7.26058229]
[1765552003964,8.53252825,137.78,137.73,7.98058229]
[1765552004162,75.0,137.83,137.73,7.98058229]
[1765552004163,0.7,137.84,137.77,7.83252825]
[1765552004464,9.50994492,137.84,137.78,7.83252825]
[1765552004638,17.34247317,137.84,137.78,7.83252825]
[1765552005256,7.95531451,137.83,137.78,7.2574586]
[1765552005441,7.95531451,137.83,137.76,7.25884896]
[1765552005442,7.83252825,137.81,137.76,7.25884896]
[1765552005650,8.80994492,137.81,137.77,7.83252825]
[1765552005858,0.7,137.8,137.77,7.83252825]
[1765552006976,9.50994492,137.82,137.78,7.83252825]
[1765552007267,7.95647295,137.81,137.78,7.83252825]
[1765552007458,7.95647295,137.81,137.76,7.25884061]
[1765552007642,7.95647295,137.81,137.77,7.83252825]
[1765552007842,7.95647295,137.81,137.77,7.82907608]
[1765552008043,7.95647295,137.81,137.74,15.0887048]
[1765552008044,17.339021,137.8,137.74,15.0887048]
[1765552008474,0.7,137.79,137.74,15.0887048]
[1765552008659,0.7,137.79,137.75,7.82907608]
[1765552009672,23.89696845,137.78,137.73,15.08953424]
[1765552009865,31.85696845,137.78,137.73,15.08953424]
[1765552010067,31.85696845,137.78,137.64,37.32631361]
[1765552010068,0.98432314,137.77,137.68,18.15760579]
[1765552010385,0.7,137.76,137.71,7.82907608]
[1765552010552,7.96,137.75,137.72,7.82907608]
[1765552010756,7.96,137.75,137.73,7.82907608]
[1765552011762,7.96,137.75,137.74,7.82907608]
[1765552012081,7.96,137.78,137.74,8.54907608]
[1765552012254,7.96,137.78,137.77,7.82907608]
[1765552012455,7.96,137.78,137.74,0.72]
[1765552012958,15.21795715,137.78,137.75,7.82907608]
[1765552013260,8.66,137.78,137.76,7.82907608]
[1765552013501,7.96,137.78,137.76,7.82907608]
[1765552013671,15.91799875,137.78,137.73,18.15145574]
[1765552013982,7.96,137.78,137.76,7.82907608]
[1765552014686,7.96,137.78,137.77,7.82907608]
[1765552015678,7.96,137.78,137.76,7.82907608]
[1765552016080,7.96,137.78,137.75,0.72]
[1765552016368,7.96,137.78,137.76,7.82907608]
[1765552016567,8.66,137.78,137.74,7.25990519]
[1765552016787,0.7,137.77,137.75,7.82907608]
[1765552017084,8.66,137.78,137.75,7.82907608]
[1765552017380,15.21805153,137.78,137.74,7.25990519]
[1765552017587,8.66,137.78,137.75,7.82907608]
[1765552017761,8.66,137.78,137.75,15.08850672]
[1765552018084,7.96,137.78,137.75,15.08850672]
[1765552018276,7.96,137.78,137.77,7.82907608]
[1765552018462,15.21670892,137.81,137.77,7.82907608]
[1765552018662,15.91670892,137.81,137.78,7.82907608]
[1765552018974,7.96,137.81,137.78,7.82907608]
[1765552019361,7.96,137.81,137.79,8.54907608]
[1765552019567,7.96,137.81,137.79,7.82907608]
[1765552020284,7.96,137.81,137.78,7.25784571]
[1765552020483,0.7,137.8,137.75,18.14882032]
[1765552020705,9.50994492,137.8,137.75,15.08822485]
[1765552021198,0.69,137.79,137.75,15.08822485]
[1765552021691,8.80994492,137.76,137.7,0.68]
[1765552021892,15.21952813,137.75,137.7,7.9417716]
[1765552022067,15.21952813,137.75,137.71,7.82907608]
[1765552022264,15.21952813,137.75,137.72,7.82907608]
[1765552022478,15.90952813,137.75,137.72,7.82907608]
[1765552023187,17.329021,137.74,137.68,7.82907608]
[1765552023367,17.329021,137.74,137.66,18.16019074]
[1765552023368,7.82907608,137.71,137.65,7.2644065]
[1765552023568,16.47907608,137.7,137.64,7.82907608]
[1765552023769,8.51907608,137.69,137.63,15.09443599]
[1765552023967,7.82907608,137.66,137.6,7.82907608]
[1765552024178,8.80994492,137.68,137.61,15.09559402]
[1765552024179,7.96,137.65,137.61,15.09559402]
[1765552024594,8.65,137.65,137.61,15.09559402]
[1765552024817,15.78445055,137.64,137.57,7.94902667]
[1765552025006,7.82907608,137.62,137.55,18.17414424]
[1765552025216,7.96,137.61,137.57,7.82907608]
[1765552025387,8.65,137.61,137.57,7.82907608]
[1765552025891,8.65,137.61,137.55,18.85414424]
[1765552026082,8.65,137.61,137.56,7.26945703]
[1765552026278,8.65,137.61,137.56,15.09853311]
[1765552026523,8.65,137.61,137.57,7.82907608]
[1765552026688,7.96,137.61,137.57,7.82907608]
[1765552027199,0.69,137.6,137.56,7.26945703]
[1765552027385,0.69,137.6,137.56,15.09853311]
[1765552027585,7.96,137.61,137.56,15.09853311]
[1765552027784,8.65,137.61,137.56,15.77853311]
[1765552028001,8.65,137.61,137.57,7.82907608]
[1765552028212,8.65,137.61,137.57,15.09795293]
[1765552028587,15.91700507,137.61,137.56,8.50907608]
[1765552028902,8.65,137.61,137.57,15.09795875]
[1765552029102,9.49994492,137.6,137.55,7.26970577]
[1765552029300,9.49994492,137.6,137.55,15.09878185]
[1765552029484,9.49994492,137.6,137.56,7.82907608]
[1765552029680,9.49994492,137.6,137.56,15.09860578]
[1765552029911,0.69,137.59,137.56,15.09860578]
[1765552030413,0.69,137.59,137.56,7.82907608]
[1765552030610,7.96,137.61,137.58,7.82907608]
[1765552030906,7.96,137.61,137.59,7.82907608]
[1765552031106,8.65,137.61,137.56,7.2694974]
[1765552031312,15.91713851,137.61,137.58,7.82907608]
[1765552031609,9.49994492,137.6,137.56,7.82907608]
[1765552031812,9.49994492,137.6,137.55,7.27007603]
[1765552032016,9.49994492,137.6,137.54,0.68]
[1765552032193,9.49994492,137.6,137.55,15.09913544]
[1765552032198,7.26797005,137.59,137.55,15.09913544]
[1765552032384,9.49994492,137.6,137.56,7.82907608]
[1765552032809,0.69,137.59,137.56,7.82907608]
[1765552033396,0.69,137.59,137.55,7.27005936]
[1765552033597,7.82907608,137.56,137.47,0.68]
[1765552033797,7.82907608,137.54,137.47,18.86454512]
[1765552034001,0.14216157,137.54,137.46,2.99086764]
[1765552034320,8.80994492,137.51,137.46,2.99086764]
[1765552034492,8.80994492,137.49,137.46,2.99086764]
[1765552034685,8.80994492,137.49,137.46,2.46086764]
[1765552035022,8.80994492,137.47,137.46,2.36086764]
[1765552035320,9.09426806,137.47,137.46,2.36086764]
[1765552035523,75.0,137.49,137.46,3.04086764]
[1765552035722,9.09426806,137.49,137.47,0.68]
[1765552035936,7.96,137.5,137.47,0.68]
[1765552036215,7.96,137.5,137.48,7.27378527]
[1765552036798,7.96,137.5,137.46,9.63543414]
[1765552037236,7.96,137.5,137.46,2.36086764]
[1765552037390,0.5,137.49,137.47,8.50907608]
[1765552037584,0.5,137.49,137.46,9.63559672]
[1765552037585,0.5,137.49,137.46,3.04086764]
[1765552037816,0.5,137.49,137.47,8.50907608]
[1765552038121,0.5,137.49,137.48,7.82907608]
[1765552038425,0.5,137.49,137.46,2.36086764]
[1765552038426,8.80994492,137.47,137.46,2.36086764]
[1765552038630,17.05426806,137.47,137.46,2.36086764]
[1765552039111,17.54426806,137.47,137.46,2.36086764]
[1765552039287,17.05426806,137.47,137.46,2.36086764]
[1765552039490,16.76994492,137.47,137.46,2.36086764]
[1765552040092,7.96,137.47,137.46,2.36086764]
[1765552040289,7.96,137.47,137.46,18.18478731]
[1765552040495,7.96,137.47,137.46,2.36086764]
[1765552040731,16.00863753,137.47,137.46,2.36086764]
[1765552041034,7.96,137.47,137.46,2.36086764]
[1765552041637,0.5,137.49,137.46,18.18478731]
[1765552041800,0.5,137.49,137.47,0.72]
[1765552041994,0.5,137.49,137.48,7.82907608]
[1765552042232,0.5,137.49,137.47,0.72]
[1765552042439,0.5,137.49,137.47,7.99429769]
[1765552042728,0.5,137.49,137.46,10.18994372]
[1765552042729,7.96,137.48,137.46,10.18994372]
[1765552042931,7.96,137.48,137.46,2.36086764]
[1765552043494,8.80994492,137.47,137.46,2.36086764]
[1765552043717,9.58426806,137.47,137.46,2.36086764]
[1765552043908,17.41334414,137.47,137.46,2.26086764]
[1765552044292,21.85703612,137.44,137.43,0.1]
[1765552044521,29.95919769,137.44,137.43,0.1]
[1765552044705,13.4370912,137.46,137.43,0.1]
[1765552044906,7.96,137.45,137.43,0.1]
[1765552045122,7.96,137.45,137.44,7.82907608]
[1765552045296,7.96,137.45,137.43,0.82]
[1765552045739,7.96,137.45,137.44,7.82907608]
[1765552046022,7.96,137.48,137.44,7.82907608]
[1765552046225,7.27431439,137.47,137.43,0.1]
[1765552046434,7.27431439,137.47,137.44,7.86738889]
[1765552046792,7.96,137.48,137.45,8.58738889]
[1765552046998,7.96,137.48,137.44,0.72]
[1765552047194,7.66431439,137.47,137.43,0.1]
[1765552047404,15.53170328,137.47,137.43,0.1]
[1765552047636,25.46010037,137.47,137.43,0.1]
[1765552047799,7.27431439,137.47,137.43,8.68738889]
[1765552048004,7.96,137.48,137.45,7.86738889]
[1765552048206,15.23409384,137.48,137.44,7.86738889]
[1765552048417,15.23409384,137.48,137.44,8.58738889]
[1765552048724,15.23409384,137.48,137.44,0.72]
[1765552049030,15.23409384,137.48,137.44,8.58738889]
[1765552049328,15.23409384,137.48,137.44,7.86738889]
[1765552049728,0.66,137.47,137.37,36.39804906]
[1765552050032,15.23409384,137.48,137.37,36.39804906]
[1765552050206,34.07855703,137.48,137.43,7.86738889]
[1765552050407,34.07855703,137.48,137.41,7.27734993]
[1765552050631,41.94594592,137.48,137.41,7.27734993]
[1765552050805,41.94594592,137.48,137.4,7.27785765]
[1765552051003,41.94594592,137.48,137.42,7.86738889]
[1765552051200,9.09426806,137.47,137.39,0.72]
[1765552051410,8.80994492,137.47,137.43,7.86738889]
[1765552051616,33.41855703,137.48,137.43,7.86738889]
[1765552051831,7.96,137.48,137.44,0.72]
[1765552052131,7.96,137.48,137.47,7.86738889]
[1765552052431,75.0,137.57,137.47,7.86738889]
[1765552052432,7.26902667,137.57,137.47,7.86738889]
[1765552052603,7.96,137.56,137.48,0.72]
[1765552052802,16.48738889,137.56,137.48,0.72]
[1765552053032,16.48738889,137.56,137.44,13.0470912]
[1765552053033,7.86738889,137.53,137.47,7.86738889]
[1765552053248,7.96,137.52,137.5,7.86738889]
[1765552053540,15.23174565,137.52,137.47,7.27414817]
[1765552053721,15.23174565,137.52,137.47,7.99414817]
[1765552053917,15.89174565,137.52,137.47,13.49791137]
[1765552054125,28.66965702,137.52,137.47,13.49791137]
[1765552054325,12.77791137,137.5,137.44,13.49791137]
[1765552054635,12.77791137,137.5,137.38,0.72]
[1765552054636,0.28432314,137.46,137.38,0.72]
[1765552054844,12.77791137,137.44,137.38,0.72]
[1765552055156,7.96,137.45,137.38,0.72]
[1765552055157,7.96,137.45,137.42,12.77791137]
[1765552055524,7.96,137.45,137.43,12.77791137]
[1765552055725,7.96,137.45,137.44,12.77791137]
[1765552056032,7.96,137.5,137.44,12.77791137]
[1765552056228,7.96,137.5,137.45,0.72]
[1765552056424,7.96,137.5,137.48,12.77791137]
[1765552056752,7.96,137.5,137.42,12.77791137]
[1765552056753,13.43791137,137.49,137.42,12.77791137]
[1765552056930,21.58785629,137.46,137.4,12.77791137]
[1765552057130,20.73791137,137.45,137.4,12.77791137]
[1765552057363,7.27590221,137.44,137.4,12.77791137]
[1765552057526,7.27590221,137.44,137.4,13.49791137]
[1765552058454,7.27590221,137.44,137.4,7.99800096]
[1765552058639,7.27590221,137.44,137.41,12.77791137]
[1765552058847,7.93590221,137.44,137.38,7.27894998]
[1765552059020,7.93590221,137.44,137.39,20.05631821]
[1765552059222,7.93590221,137.44,137.4,12.77791137]
[1765552059423,7.93590221,137.44,137.38,0.72]
[1765552059834,7.93590221,137.44,137.4,12.77791137]
[1765552060036,7.93590221,137.44,137.39,12.77791137]
[1765552060037,0.66,137.43,137.39,12.77791137]
[1765552060239,0.66,137.43,137.36,7.2797123]
[1765552060240,7.98,137.42,137.36,7.2797123]
[1765552060439,15.25740675,137.42,137.38,12.77791137]
[1765552060749,7.98,137.42,137.4,12.77791137]
[1765552061146,15.25697957,137.42,137.4,12.77791137]
[1765552061347,15.25697957,137.42,137.38,7.99871169]
[1765552061654,7.98,137.42,137.38,7.99905614]
[1765552061859,15.25737076,137.42,137.32,21.0070912]
[1765552062043,15.91737076,137.42,137.38,12.77791137]
[1765552062236,0.5,137.41,137.38,12.77791137]
[1765552062450,7.77772814,137.41,137.38,12.77791137]
[1765552062646,8.43772814,137.41,137.38,12.77791137]
[1765552062846,0.5,137.41,137.38,0.72]
[1765552063050,0.5,137.41,137.32,21.0070912]
[1765552063051,0.66,137.4,137.35,8.00027979]
[1765552063445,7.98,137.39,137.37,12.77791137]
[1765552063763,7.98,137.39,137.32,7.96]
[1765552063764,8.80994492,137.38,137.33,12.77791137]
[1765552064059,8.80994492,137.38,137.32,0.72]
[1765552064266,8.80994492,137.38,137.26,7.96]
[1765552064430,0.66,137.37,137.31,12.77791137]
[1765552064629,8.80994492,137.38,137.32,7.28219538]
[1765552064836,8.64,137.39,137.35,12.77791137]
[1765552065057,8.64,137.39,137.33,0.72]
[1765552065260,8.64,137.39,137.38,12.77791137]
[1765552065261,7.98,137.39,137.38,12.77791137]
[1765552065463,0.5,137.41,137.38,12.77791137]
[1765552065639,0.5,137.41,137.33,13.7670912]
[1765552065640,0.5,137.41,137.4,12.77791137]
[1765552065834,0.5,137.41,137.4,13.49791137]
[1765552066081,7.98,137.44,137.4,12.77791137]
[1765552066352,15.91608918,137.44,137.39,12.77791137]
[1765552066544,7.27696114,137.42,137.35,8.00018346]
[1765552066743,7.27696114,137.42,137.36,8.00011134]
[1765552067058,0.66,137.43,137.37,7.27939528]
[1765552067265,7.98,137.44,137.4,12.77791137]
[1765552067438,15.25607272,137.44,137.4,12.77791137]
[1765552067638,0.66,137.43,137.39,12.77791137]
[1765552067834,0.66,137.43,137.4,12.77791137]
[1765552068241,0.66,137.43,137.39,12.77791137]
[1765552068451,33.44582824,137.44,137.4,12.77791137]
[1765552068631,8.80994492,137.43,137.36,0.68]
[1765552068828,9.46994492,137.43,137.38,12.77791137]
[1765552069240,9.46994492,137.43,137.36,7.95997454]
[1765552069241,33.44582824,137.44,137.4,12.77791137]
[1765552069644,7.98,137.44,137.41,12.77791137]
[1765552069828,7.98,137.44,137.35,36.40201022]
[1765552069829,7.98,137.44,137.39,7.27838585]
[1765552070037,15.91590953,137.44,137.4,12.77791137]
[1765552070475,34.10566505,137.44,137.39,0.68]
[1765552070671,34.10566505,137.44,137.4,12.77791137]
[1765552071166,34.10566505,137.44,137.39,0.68]
[1765552071167,0.66,137.43,137.36,7.27967735]
[1765552071365,0.66,137.43,137.38,12.77791137]
[1765552071545,13.43791137,137.43,137.38,12.77791137]
[1765552071863,0.66,137.43,137.39,12.77791137]
[1765552072069,9.46994492,137.43,137.39,12.77791137]
[1765552072363,0.66,137.43,137.39,12.77791137]
[1765552072563,7.93696114,137.42,137.39,12.77791137]
[1765552072766,7.27696114,137.42,137.39,12.77791137]
[1765552073263,0.5,137.41,137.38,20.05688511]
[1765552073464,0.5,137.41,137.39,0.68]
[1765552073639,0.5,137.41,137.39,13.45791137]
[1765552073841,0.5,137.41,137.39,0.68]
[1765552074071,1.16,137.41,137.37,12.77791137]
[1765552074243,1.16,137.41,137.34,7.28102944]
[1765552074244,9.14,137.41,137.34,7.28102944]
[1765552074442,9.14,137.41,137.37,12.77791137]
[1765552074747,38.91098268,137.4,137.34,12.77791137]
[1765552075060,38.91098268,137.4,137.33,0.68]
[1765552075368,8.80994492,137.39,137.33,0.68]
[1765552075541,7.98,137.38,137.33,13.45791137]
[1765552076058,8.64,137.38,137.33,13.45791137]
[1765552076254,22.24785629,137.37,137.29,0.68]
[1765552076468,0.28432314,137.36,137.29,0.68]
[1765552076638,7.28119994,137.34,137.31,12.77791137]
[1765552076839,7.28119994,137.34,137.32,12.77791137]
[1765552078248,7.94119994,137.34,137.31,12.77791137]
[1765552078452,8.80994492,137.33,137.28,0.68]
[1765552078671,7.98,137.32,137.3,12.77791137]
[1765552078974,7.98,137.35,137.31,12.77791137]
[1765552079151,8.80994492,137.34,137.28,0.68]
[1765552079354,8.80994492,137.34,137.3,12.77791137]
[1765552079560,9.46994492,137.34,137.3,12.77791137]
[1765552079761,0.66,137.33,137.3,12.77791137]
[1765552080059,7.98,137.35,137.32,12.77791137]
[1765552080368,7.98,137.35,137.26,25.49899992]
[1765552080369,7.98,137.35,137.33,12.77791137]
[1765552080739,7.98,137.35,137.33,13.45791137]
[1765552080943,7.98,137.35,137.34,13.45791137]
[1765552081161,93.19416718,137.41,137.34,13.45791137]
[1765552081162,8.64,137.41,137.34,13.45791137]
[1765552081372,7.98,137.41,137.38,12.77791137]
[1765552081550,0.66,137.4,137.33,7.28162022]
[1765552081754,12.77791137,137.39,137.32,7.28214833]
[1765552082068,29.56785629,137.38,137.32,12.77791137]
[1765552082364,7.98,137.38,137.32,0.68]
[1765552082581,16.78994492,137.38,137.33,7.2815269]
[1765552082767,18.19498374,137.41,137.34,12.77791137]
[1765552082962,16.78994492,137.4,137.35,12.77791137]
[1765552083356,7.98,137.4,137.37,12.77791137]
[1765552083577,7.98,137.4,137.36,0.68]
[1765552083780,7.98,137.43,137.38,0.68]
[1765552084081,9.46994492,137.42,137.36,0.68]
[1765552084248,9.46994492,137.42,137.36,12.77791137]
[1765552084653,7.27749072,137.41,137.36,20.05789946]
[1765552084877,7.98,137.4,137.37,12.77791137]
[1765552085268,7.98,137.4,137.37,13.45791137]
[1765552085783,7.98,137.4,137.38,13.47491891]
[1765552086105,7.98,137.4,137.37,12.79491891]
[1765552086376,7.98,137.4,137.36,7.95998809]
[1765552086577,9.46994492,137.39,137.33,12.79491891]
[1765552086754,9.46994492,137.39,137.31,18.20585978]
[1765552086755,8.80994492,137.36,137.31,12.79491891]
[1765552086954,7.98,137.35,137.31,12.79491891]
[1765552087150,7.98,137.35,137.31,20.07763499]
[1765552087351,7.98,137.35,137.31,20.75763499]
[1765552087771,7.98,137.35,137.32,20.75703146]
[1765552088171,0.66,137.34,137.29,7.28350614]
[1765552088368,0.66,137.34,137.3,12.79491891]
[1765552088569,7.98,137.35,137.32,7.2822561]
[1765552089486,7.98,137.35,137.33,0.68]
[1765552089688,7.98,137.35,137.32,20.75717501]
[1765552089881,7.98,137.35,137.3,7.28322296]
[1765552090100,15.92077043,137.35,137.3,7.28322296]
[1765552090393,15.92077043,137.35,137.31,20.07764495]
[1765552090394,7.98,137.35,137.31,20.07764495]
[1765552090566,7.98,137.35,137.31,7.96272604]
[1765552090761,7.98,137.35,137.32,12.79491891]
[1765552090962,15.92091167,137.35,137.29,0.68]
[1765552091164,0.66,137.34,137.29,7.28384627]
[1765552091367,0.66,137.34,137.3,7.28327449]
[1765552091885,9.46994492,137.34,137.27,18.89203194]
[1765552092068,9.46994492,137.34,137.29,7.28374956]
[1765552092270,15.92091167,137.35,137.3,7.28292953]
[1765552092575,15.26091167,137.35,137.31,7.28250483]
[1765552092776,15.26091167,137.35,137.3,12.79491891]
[1765552093078,0.66,137.34,137.29,20.07866404]
[1765552093282,0.66,137.34,137.3,7.28328488]
[1765552093473,0.66,137.34,137.29,13.47491891]
[1765552093682,9.46994492,137.34,137.29,7.28378126]
[1765552093864,9.46994492,137.34,137.29,20.07870017]
[1765552094203,0.66,137.34,137.3,7.2833174]
[1765552094697,22.26486383,137.34,137.28,7.28401975]
[1765552094863,7.28173013,137.33,137.28,12.79491891]
[1765552095067,7.98,137.32,137.28,0.68]
[1765552095395,7.98,137.32,137.29,12.79491891]
[1765552095602,84.09426806,137.37,137.31,12.79491891]
[1765552095603,7.2802183,137.36,137.31,12.79491891]
[1765552095767,7.98,137.35,137.31,12.79491891]
[1765552095963,7.98,137.35,137.32,13.47491891]
[1765552096294,7.98,137.35,137.32,0.68]
[1765552096615,7.98,137.35,137.32,13.47491891]
[1765552096763,7.98,137.35,137.34,12.79491891]
[1765552096964,7.98,137.35,137.33,0.68]
[1765552097264,0.66,137.34,137.29,7.28365459]
[1765552097464,0.66,137.34,137.29,20.0785735]
[1765552097682,0.66,137.34,137.29,7.96365459]
[1765552097888,13.45491891,137.34,137.29,7.96365459]
[1765552098166,0.66,137.34,137.29,7.96365459]
[1765552098372,0.66,137.34,137.3,7.28306206]
[1765552098677,15.26069001,137.35,137.31,7.94276805]
[1765552098878,15.26069001,137.35,137.29,12.79491891]
[1765552099079,15.26069001,137.35,137.3,12.79491891]
[1765552099388,28.73560892,137.35,137.26,0.66]
[1765552099568,28.73560892,137.35,137.29,12.79491891]
[1765552099995,28.73560892,137.35,137.25,61.93078322]
[1765552099996,7.98,137.35,137.31,12.79491891]
[1765552100426,7.98,137.35,137.32,0.66]
[1765552100603,7.98,137.35,137.32,13.45491891]
[1765552100800,7.95944047,137.38,137.33,20.07640268]
[1765552101003,7.98,137.37,137.34,12.79491891]
[1765552101295,7.98,137.37,137.36,12.79491891]
[1765552101512,7.98,137.37,137.33,7.28148377]
[1765552101893,7.27768333,137.41,137.35,12.79491891]
[1765552102220,7.98,137.4,137.36,12.79491891]
[1765552102818,7.98,137.4,137.36,13.45491891]
[1765552103000,7.98,137.4,137.37,13.45491891]
[1765552103198,7.98,137.4,137.37,0.66]
[1765552104133,7.98,137.4,137.37,13.45491891]
[1765552104333,7.98,137.4,137.36,20.07504772]
[1765552104942,0.68,137.39,137.33,12.79491891]
[1765552105104,15.25822703,137.4,137.35,12.79491891]
[1765552105425,7.98,137.4,137.36,20.07504624]
[1765552105725,15.93805673,137.4,137.35,7.28049864]
[1765552106018,9.48994492,137.39,137.34,12.79491891]
[1765552106313,9.48994492,137.39,137.33,12.79491891]
[1765552106512,9.48994492,137.39,137.34,20.07566711]
[1765552106916,7.98929203,137.38,137.34,20.07566711]
[1765552107116,7.98,137.37,137.33,20.78660875]
[1765552107533,7.98,137.37,137.31,7.28243045]
[1765552107720,0.71,137.36,137.32,7.28221857]
[1765552108738,7.98,137.37,137.33,20.07664433]
[1765552108920,16.80057332,137.36,137.31,20.07731765]
[1765552109235,35.00092276,137.36,137.3,20.78808574]
[1765552109423,0.71,137.35,137.28,13.0470912]
[1765552109730,0.71,137.35,137.3,7.28294935]
[1765552109731,7.98,137.34,137.3,7.28294935]
[1765552109905,7.98,137.34,137.31,12.79491891]
[1765552110735,7.98,137.34,137.31,20.07768168]
[1765552110924,7.98,137.34,137.31,38.99465859]
[1765552111325,7.98,137.34,137.31,7.28276277]
[1765552111833,7.98,137.34,137.29,18.91901243]
[1765552111834,0.71,137.33,137.3,7.2831332]
[1765552112014,0.71,137.33,137.27,18.92170905]
[1765552112219,0.71,137.33,137.27,7.28451673]
[1765552112413,0.71,137.33,137.27,12.79491891]
[1765552112616,0.71,137.33,137.28,12.79491891]
[1765552112933,7.99180089,137.33,137.28,12.79491891]
[1765552113234,0.71,137.33,137.29,7.9937357]
[1765552113432,0.71,137.33,137.29,7.2837357]
[1765552113732,7.98,137.34,137.3,12.79491891]
[1765552113938,7.98,137.34,137.3,8.59165684]
[1765552114142,0.71,137.38,137.33,7.88165684]
[1765552114440,0.71,137.38,137.31,0.71]
[1765552114441,7.98,137.37,137.34,7.88165684]
[1765552114737,8.69,137.37,137.29,33.47336495]
[1765552114917,7.98,137.37,137.34,7.88165684]
[1765552115114,7.98,137.37,137.3,0.71]
[1765552115115,7.98,137.37,137.36,7.88165684]
[1765552115315,7.98,137.37,137.35,7.28066982]
[1765552115625,7.98,137.37,137.35,7.88165684]
[1765552115933,7.98,137.4,137.35,0.71]
[1765552116143,7.98,137.4,137.37,7.88165684]
[1765552116329,7.98,137.4,137.36,7.88165684]
[1765552116638,8.69,137.4,137.36,7.88165684]
[1765552117031,8.69,137.4,137.34,26.19412788]
[1765552117232,8.69,137.4,137.36,7.88165684]
[1765552117734,8.69,137.4,137.36,8.59165684]
[1765552118039,7.98,137.4,137.37,8.59165684]
[1765552118441,8.69,137.4,137.35,0.71]
[1765552118622,8.69,137.4,137.35,8.59165684]
[1765552119034,0.71,137.39,137.34,33.36578472]
[1765552119540,0.71,137.39,137.34,34.07578472]
[1765552119718,0.71,137.39,137.34,33.36578472]
[1765552119913,7.98,137.4,137.35,0.71]
[1765552120118,7.98,137.4,137.35,8.59165684]
[1765552120337,8.69,137.4,137.35,8.59165684]
[1765552120541,7.98855011,137.39,137.34,7.28112803]
[1765552120730,8.95210649,137.38,137.32,7.28182629]
[1765552121044,17.54376333,137.38,137.32,7.28182629]
[1765552121243,7.98960981,137.37,137.32,7.28182629]
[1765552121545,7.98,137.36,137.32,7.28182629]
[1765552121745,8.69,137.36,137.32,7.28182629]
[1765552122618,8.69,137.36,137.31,7.28279076]
[1765552122938,8.69,137.36,137.31,15.8744476]
[1765552123324,8.69,137.36,137.31,34.08142451]
[1765552123631,8.69,137.36,137.32,8.59165684]
[1765552123632,7.98,137.36,137.32,8.59165684]
[1765552123833,8.69,137.36,137.32,7.88165684]
[1765552124045,8.69,137.36,137.31,25.48976767]
[1765552124046,7.98,137.36,137.33,8.59165684]
[1765552124239,7.98,137.36,137.34,7.88165684]
[1765552124547,7.98,137.36,137.33,8.59165684]
[1765552124852,7.98,137.36,137.31,25.48976767]
[1765552124853,8.69,137.36,137.34,7.28119994]
[1765552125157,0.71,137.35,137.31,8.58857127]
[1765552125332,8.69,137.36,137.31,0.71]